[Event "USA Championship 2022"]
[Site "Saint Louis"]
[Date "2022.10.15"]
[Round "10.6"]
[White "Lenderman, Aleksandr"]
[Black "Swiercz, Dariusz"]
[Result "1/2-1/2"]
[ECO "D14"]
[WhiteElo "2535"]
[BlackElo "2652"]
[Annotator "TA"]
[PlyCount "98"]
[EventDate "2022.09.05"]
[EventType "tourn"]
[EventCountry "USA"]
[SourceTitle "playchess.com"]
[Source "ChessBase"]
[SourceQuality "1"]
[TimeControl "40/5400+30:1800+30"]

{[%evp 14,98,30,0,16,4,33,33,38,35,34,38,33,-2,27,22,28,29,26,23,25,23,20,27,25,14,18,17,14,6,0,6,13,0,0,0,0,0,0,0,0,-29,-13,-3,20,12,21,22,22,22,22,18,19,19,19,20,20,16,16,16,16,30,31,0,31,31,35,35,39,39,56,8,8,8,34,8,57,8,8,8,57,0,8,0,57,0,31]} 1. d4 {[%emt 0:00:01]} Nf6 {[%emt 0:04:52]} 2. c4 {[%emt 0:00:05]} c6 {[%emt 0:00:12]} 3. Nc3 {[%emt 0:02:42]} d5 {[%emt 0:00:09]} 4. cxd5 {[%emt 0:00:04]} cxd5 {[%emt 0:00:03]} 5. Bf4 {[%emt 0:00:04]} Nc6 {[%emt 0:00:08]} 6. e3 {[%emt 0:00:05]} Bf5 {[%emt 0:00:06]} 7. Nf3 {[%emt 0:00:07]} e6 {[%emt 0:00:06]} 8. Be2 {[%emt 0:00:04]} (8. Qb3 $5 {[%cal Rb3b7]} Bb4 9. Nh4 $11) 8... Nd7 {[%emt 0:04:09] D14: Slav Defence: Exchange variation with ...Bf5.} 9. O-O {[%emt 0:02:10]} Be7 {[%emt 0:00:10]} 10. Nb5 {[%emt 0:02:30] Black must now prevent Nc7+.} O-O {[%emt 0:03:28] White is slightly better.} 11. Bc7 {[%emt 0:06:39]} Qc8 {[%emt 0:01:52] [#] And now ...a6 would win.} 12. Bg3 {[%emt 0:00:07] [#]} Qd8 $146 {[%emt 0:02:50]} ({Predecessor:} 12... Rd8 13. Rc1 a6 14. Nd6 Bxd6 15. Bxd6 Nf6 16. Be5 h6 17. Bxf6 gxf6 18. Nd2 Rd7 {0-1 (40) Thuerauf,P (1863)-Rosin,R (1961) Germany 2005}) 13. Qb3 {[%emt 0:21:49]} Nb6 {[%emt 0:11:44]} 14. Rfc1 {[%emt 0:00:45]} Rc8 {[%emt 0:04:22] Prevents Bc7.} 15. Ne5 {[%emt 0:03:34] [#] Strongly threatening Nxc6.} Na5 {[%emt 0:07:22]} 16. Rxc8 {[%emt 0:03:46]} Qxc8 {[%emt 0:00:54]} 17. Qd1 {[%emt 0:00:25] Threatens to win with Rc1.} a6 {[%emt 0:00:53]} 18. Rc1 {[%emt 0:01:45]} Qd8 {[%emt 0:28:15]} 19. Nc3 {[%emt 0:02:06]} Bd6 {[%emt 0:00:18]} 20. Qe1 {[%emt 0:05:01][%cal Oc3b5]} Bxe5 {[%emt 0:07:29]} 21. dxe5 {[%emt 0:00:54][%cal Oc3b5]} Nc6 {[%emt 0:00:05]} 22. Bf1 {[%emt 0:00:39]} Bg6 {[%emt 0:02:01]} 23. e4 {[%emt 0:05:14]} dxe4 {[%emt 0:13:42]} 24. Nxe4 {[%emt 0:00:39]} Qd4 {[%emt 0:00:08][%csl LRb2,LRe4,LRe5]} 25. Nc3 {[%emt 0:02:10]} Qb4 {[%emt 0:03:48]} 26. b3 {[%emt 0:01:51]} Rd8 {[%emt 0:00:05]} 27. h3 {[%emt 0:04:39]} h6 {[%emt 0:00:22]} 28. f3 {[%emt 0:03:05]} Nd7 {[%emt 0:01:29][%cal Od7e5]} 29. Rd1 {[%emt 0:02:13]} Nc5 {[%emt 0:02:14]} 30. Rxd8+ {[%emt 0:01:45]} Nxd8 {[%emt 0:00:01]} 31. Bf2 {[%emt 0:01:32]} Nc6 {[%emt 0:00:49]} 32. Qe3 {[%emt 0:09:39] Inhibits Bd3.} Nd3 {[%emt 0:00:15]} 33. Bxd3 {[%emt 0:00:18]} Qxc3 {[%emt 0:00:04]} 34. Bxg6 {[%emt 0:00:09] A strong pair of Bishops.} Qa1+ {[%emt 0:01:43]} 35. Qe1 {[%emt 0:02:00]} Qxe1+ {[%emt 0:00:07]} 36. Bxe1 {[%emt 0:00:03]} fxg6 $11 {[%emt 0:00:04][%mdl 4096] Endgame KB-KN} 37. f4 {[%emt 0:01:14]} Kf7 {[%emt 0:01:45]} 38. Bc3 {[%emt 0:00:25]} b5 {[%emt 0:00:37]} 39. Kf2 {[%emt 0:00:16]} h5 {[%emt 0:00:42][%cal Og6g5]} 40. Ke3 {[%emt 0:01:21]} Ke8 {[%emt 0:00:08]} 41. Ke4 {[%emt 0:31:11]} Ke7 {[%emt 0:30:54]} 42. g4 {[%emt 0:00:30]} (42. Bd4 $14 {is more appropriate.}) 42... hxg4 {[%emt 0:00:11]} 43. hxg4 {[%emt 0:00:05]} Kf7 {[%emt 0:00:38]} 44. Bd2 {[%emt 0:00:19]} Ke7 {[%emt 0:00:00]} (44... Ke8 $1 $11) 45. Be1 {[%emt 0:00:00]} (45. Be3 $14) 45... Kd7 {[%emt 0:00:00]} 46. Bc3 {[%emt 0:00:00]} Ke7 {[%emt 0:00:00]} (46... Ne7 $11) 47. Be1 {[%emt 0:00:00]} (47. Bd4 $14) 47... Kd7 {[%emt 0:00:00]} 48. Bc3 {[%emt 0:00:00]} (48. Bh4 $11 {is superior.}) 48... Ke7 $14 {[%emt 0:00:00]} 49. Be1 {[%emt 0:00:00]} (49. Bd4 $5) 49... Kd7 {[%emt 0:00:08] Weighted Error Value: White=0.10 (very precise) /Black=0.08 (flawless)} 1/2-1/2

[Event "USA Championship 2022"]
[Site "Saint Louis"]
[Date "2022.10.15"]
[Round "10.7"]
[White "Xiong, Jeffery"]
[Black "Shankland, Sam"]
[Result "1/2-1/2"]
[ECO "A13"]
[WhiteElo "2690"]
[BlackElo "2712"]
[Annotator "TA"]
[PlyCount "152"]
[EventDate "2022.09.05"]
[EventType "tourn"]
[EventCountry "USA"]
[SourceTitle "playchess.com"]
[Source "ChessBase"]
[SourceQuality "1"]
[TimeControl "40/5400+30:1800+30"]

{[%evp 11,152,8,20,15,16,8,0,0,20,0,8,0,0,0,0,0,0,0,0,0,0,0,0,0,0,0,12,0,0,0,0,0,0,0,0,0,0,0,0,0,0,0,37,22,45,45,50,43,49,43,73,63,77,50,52,38,41,50,46,0,0,0,0,0,0,0,0,0,54,53,54,56,56,56,70,70,70,64,73,49,49,49,70,70,94,49,56,49,70,49,89,49,90,70,70,70,94,70,101,70,70,70,70,70,94,67,101,62,67,62,94,31,31,31,31,31,31,31,31,31,31,31,31,31,31,31,31,31,31,0,0,0,0,0,0,0,0,0,0,0,0,0,0]} 1. d4 {[%emt 0:00:07]} d5 {[%emt 0:00:10]} 2. c4 {[%emt 0:00:10]} e6 {[%emt 0:00:03]} 3. Nf3 {[%emt 0:00:16]} Nf6 {[%emt 0:00:06]} 4. e3 {[%emt 0:00:32]} Be7 {[%emt 0:05:25]} 5. b3 {[%emt 0:01:54]} O-O {[%emt 0:02:35]} 6. Bb2 {[%emt 0:00:09]} b6 {[%emt 0:01:38]} 7. cxd5 {[%emt 0:02:47] A13: English Opening: 1...e6.} Nxd5 {[%emt 0:02:02]} 8. Nbd2 {[%emt 0:13:19]} Bb7 {[%emt 0:01:14]} 9. a3 {[%emt 0:05:46]} Nd7 {[%emt 0:03:42] [#]} 10. Be2 $146 {[%emt 0:06:14]} ({Predecessor:} 10. Bd3 c5 11. O-O cxd4 12. Nxd4 Nc5 13. Bc2 Bf6 14. b4 Nd7 15. Ne4 Be5 16. Qd3 g6 17. f4 Bg7 18. Nd6 Qb8 19. Nxb7 Qxb7 20. Ba4 {0-1 (32) Babayeva,N (2071)-Garayev,S (2126) Nakhchivan 2022}) 10... c5 {[%emt 0:01:53]} 11. dxc5 {[%emt 0:02:04]} Nxc5 {[%emt 0:01:06]} 12. b4 {[%emt 0:00:18]} Nd7 {[%emt 0:00:16]} 13. O-O {[%emt 0:03:45]} a5 {[%emt 0:05:08]} 14. b5 {[%emt 0:04:16]} Bf6 {[%emt 0:02:49]} 15. Nd4 {[%emt 0:00:13]} Nc5 {[%emt 0:00:10]} (15... Rc8 $5 {[%cal Rd5c3]}) 16. Nc4 {[%emt 0:00:18]} Rc8 {[%emt 0:03:00]} 17. Rc1 {[%emt 0:06:51]} Qc7 {[%emt 0:08:49]} 18. Qc2 {[%emt 0:01:55]} Rfd8 {[%emt 0:00:00]} 19. Rfd1 {[%emt 0:00:03]} Ne7 {[%emt 0:16:08]} 20. Bf3 {[%emt 0:14:03] Against Be4} Bd5 {[%emt 0:00:10]} 21. Bxd5 {[%emt 0:02:34]} exd5 {[%emt 0:00:40]} 22. Nd2 {[%emt 0:00:33]} Qd7 {[%emt 0:00:21]} 23. N2f3 {[%emt 0:04:56][%cal Od4c6]} Re8 {[%emt 0:05:34]} 24. a4 {[%emt 0:02:52]} Rc7 {[%emt 0:03:15]} 25. Ba3 {[%emt 0:04:28]} Rec8 {[%emt 0:00:33]} 26. Ne2 {[%emt 0:02:47]} g6 {[%emt 0:06:23]} 27. h3 {[%emt 0:00:37]} Bg7 {[%emt 0:01:02]} 28. Qa2 {[%emt 0:00:37]} h6 {[%emt 0:05:35]} 29. Rc2 {[%emt 0:03:29]} Bf8 {[%emt 0:05:00]} 30. Bb2 {[%emt 0:01:51]} Ne4 {[%emt 0:01:37]} 31. Rxc7 {[%emt 0:00:35]} Rxc7 {[%emt 0:00:58]} 32. Be5 {[%emt 0:01:04]} Rc8 {[%emt 0:01:01]} 33. Nf4 {[%emt 0:03:39]} Nc3 {[%emt 0:02:53]} 34. Bxc3 {[%emt 0:00:12]} Rxc3 {[%emt 0:00:01]} 35. Nxd5 {[%emt 0:05:59]} (35. Qd2 $14 {feels stronger.} Rc5 36. Rc1 Rxc1+ 37. Qxc1) 35... Nxd5 $11 {[%emt 0:00:53]} 36. Qxd5 {[%emt 0:00:02]} Qxd5 {[%emt 0:00:37]} 37. Rxd5 $14 {[%emt 0:00:02][%mdl 4096] Endgame KRB-KRN} Ra3 {[%emt 0:00:14]} 38. Rd4 {[%emt 0:02:43]} Bc5 {[%emt 0:03:52]} 39. Rc4 {[%emt 0:00:47]} Bb4 {[%emt 0:00:09]} (39... Ra1+ $11 40. Kh2 Ra2) 40. Rc6 {[%emt 0:02:16]} Bc5 {[%emt 0:00:37]} 41. Ne5 $1 {[%emt 0:31:33]} ({Much worse is} 41. Rc8+ Kg7 42. Ne5 Ra1+ 43. Kh2 Bd6 $15) 41... Rxa4 {[%emt 0:30:42]} 42. Nd7 {[%emt 0:00:20][%csl LRb6,LRc5]} Rb4 {[%emt 0:00:39]} 43. Nxc5 {[%emt 0:00:13] White is more active.} bxc5 {[%emt 0:00:04]} 44. Rxc5 {[%emt 0:00:08] KR-KR} h5 {[%emt 0:00:25]} 45. g3 {[%emt 0:00:37]} Kg7 {[%emt 0:00:29]} 46. b6 {[%emt 0:00:05]} Rxb6 {[%emt 0:00:02]} 47. Rxa5 {[%emt 0:00:04]} Rb2 {[%emt 0:00:20]} 48. Ra6 {[%emt 0:00:09]} Rc2 {[%emt 0:00:04]} 49. Kg2 {[%emt 0:00:21]} Rb2 {[%emt 0:00:06]} 50. Kf3 {[%emt 0:00:09]} Rc2 {[%emt 0:00:11]} 51. Rd6 {[%emt 0:00:07]} Rb2 {[%emt 0:00:07]} 52. g4 {[%emt 0:01:19]} hxg4+ {[%emt 0:00:42]} 53. hxg4 {[%emt 0:00:03]} Ra2 {[%emt 0:00:15]} 54. Kg3 {[%emt 0:00:34]} Ra3 {[%emt 0:01:21]} 55. Kf4 {[%emt 0:00:22]} Ra5 {[%emt 0:00:38]} 56. Ke4 {[%emt 0:00:08]} Ra4+ {[%emt 0:00:52]} 57. Rd4 $1 {[%emt 0:00:05]} Ra5 {[%emt 0:00:07]} 58. f4 {[%emt 0:00:04]} Ra1 {[%emt 0:01:24]} 59. Ke5 {[%emt 0:00:20]} Re1 {[%emt 0:01:39]} 60. e4 {[%emt 0:01:33]} Rg1 {[%emt 0:00:41]} 61. f5 {[%emt 0:00:57]} ({White should try} 61. g5 $16) 61... gxf5 $1 {[%emt 0:02:37]} 62. gxf5 {[%emt 0:00:12]} Ra1 {[%emt 0:00:24]} 63. Rc4 {[%emt 0:00:29]} Ra5+ {[%emt 0:00:29]} 64. Kf4 {[%emt 0:00:05]} f6 {[%emt 0:01:16]} 65. Rc7+ {[%emt 0:00:40]} Kf8 {[%emt 0:00:49]} 66. Ke3 {[%emt 0:00:59]} Ra4 {[%emt 0:00:00]} 67. Kd3 {[%emt 0:00:04]} Rb4 {[%emt 0:00:00]} 68. Rc4 {[%emt 0:00:06]} Rb7 {[%emt 0:00:11]} 69. Kd4 {[%emt 0:00:15]} Re7 {[%emt 0:00:28]} 70. Kd5 {[%emt 0:00:10]} Re5+ {[%emt 0:00:07] The position is equal.} 71. Kd6 {[%emt 0:00:23]} Kf7 {[%emt 0:01:08]} 72. Rc7+ {[%emt 0:00:18]} Kf8 {[%emt 0:00:05]} 73. Rc8+ {[%emt 0:00:05]} Kf7 {[%emt 0:00:04]} 74. Rc7+ {[%emt 0:00:05]} Kf8 {[%emt 0:00:03]} 75. Rc8+ {[%emt 0:00:05]} Kf7 {[%emt 0:00:03]} 76. Rc7+ {[%emt 0:00:05]} Kf8 {[%emt 0:00:13] Weighted Error Value: White=0.09 (flawless) /Black=0.10 (very precise)} 1/2-1/2

[Event "USA Championship 2022"]
[Site "Saint Louis"]
[Date "2022.10.17"]
[Round "11.1"]
[White "Swiercz, Dariusz"]
[Black "Sevian, Samuel"]
[Result "0-1"]
[ECO "C83"]
[WhiteElo "2652"]
[BlackElo "2684"]
[Annotator "TA"]
[PlyCount "84"]
[EventDate "2022.09.05"]
[EventType "tourn"]
[EventCountry "USA"]
[SourceTitle "playchess.com"]
[Source "ChessBase"]
[SourceQuality "1"]
[TimeControl "40/5400+30:1800+30"]

{[%evp 21,84,27,19,26,35,26,21,42,29,31,32,11,24,17,68,17,6,11,11,5,14,15,9,15,8,5,7,6,12,0,0,0,0,0,0,0,0,0,0,0,0,-13,-12,-16,-16,-91,0,0,-5,-6096,-6079,-5193,-1870,-6094,-6094,-6087,-1050,-1050,-1035,-4870,-1605,-1172,-1171,-1020,-974]} 1. e4 {[%emt 0:00:03]} e5 {[%emt 0:02:12]} 2. Nf3 {[%emt 0:00:13]} Nc6 {[%emt 0:00:06]} 3. Bb5 {[%emt 0:00:04]} a6 {[%emt 0:00:08]} 4. Ba4 {[%emt 0:00:05]} Nf6 {[%emt 0:00:07]} 5. O-O {[%emt 0:00:09]} Nxe4 {[%emt 0:00:36]} 6. d4 {[%emt 0:00:23]} b5 {[%emt 0:00:09]} 7. Bb3 {[%emt 0:00:05]} d5 {[%emt 0:00:06]} 8. dxe5 {[%emt 0:00:05]} Be6 {[%emt 0:00:09]} 9. Nbd2 {[%emt 0:00:06]} Be7 {[%emt 0:00:27]} 10. c3 {[%emt 0:00:06]} Nc5 {[%emt 0:00:20]} 11. Bc2 {[%emt 0:00:06]} d4 {[%emt 0:00:07]} 12. Nb3 {[%emt 0:00:08][%cal Rf3d4] C83: Open Ruy Lopez: 9 c3 Be7.} d3 {[%emt 0:00:09]} 13. Bb1 {[%emt 0:00:16] aiming for Nxc5.} Nxb3 {[%emt 0:00:07]} 14. axb3 {[%emt 0:00:03] The position is equal.} Bf5 {[%emt 0:00:09]} 15. Re1 {[%emt 0:03:20]} O-O {[%emt 0:00:23]} 16. h3 {[%emt 0:07:20]} Qd7 {[%emt 0:00:15]} 17. b4 {[%emt 0:00:11]} Rfd8 {[%emt 0:01:07]} 18. Bf4 {[%emt 0:01:21]} (18. g4 $1 $14 Bg6 19. Ba2) 18... a5 $11 {[%emt 0:00:36]} 19. g4 {[%emt 0:00:51]} Bg6 {[%emt 0:00:13]} 20. bxa5 {[%emt 0:00:11]} Rxa5 {[%emt 0:00:07]} 21. Ba2 {[%emt 0:00:05]} Rf8 {[%emt 0:00:36]} 22. b4 {[%emt 0:08:00]} Ra4 {[%emt 0:00:11]} 23. e6 {[%emt 0:00:05]} Qd8 {[%emt 0:00:10][%cal Oa4a2] [#] And now ...Rxa2! would win.} 24. exf7+ {[%emt 0:00:47]} Kh8 {[%emt 0:00:35] [#]} 25. Be6 $146 {[%emt 0:13:43]} ({Don't go for} 25. Re3 $2 Qa8 26. Bg5 Rxf7 27. Bxe7 Rxe7 28. Rxe7 Nxe7 $19) ({Predecessor:} 25. Bd2 h6 26. Bb3 Rxa1 27. Qxa1 Bxf7 28. Bxf7 Rxf7 {½-½ (40) Dothan,Y (2546)-Koegler,K (2542) ICCF email 2020}) 25... Rxa1 {[%emt 0:02:10]} 26. Qxa1 {[%emt 0:00:06] Qa6 is the strong threat.} Bxf7 {[%emt 0:04:01]} 27. Qa2 {[%emt 0:02:43]} Bg6 {[%emt 0:26:28]} 28. Qd2 {[%emt 0:07:19]} h6 {[%emt 0:13:38]} 29. Kg2 {[%emt 0:14:47][%cal Of4h6]} Bd6 $36 {[%emt 0:06:31][%mdl 2048] Black has the initiative.} 30. Bxd6 {[%emt 0:28:19]} Qxd6 {[%emt 0:04:21]} 31. Nh4 {[%emt 0:01:10]} Bh7 {[%emt 0:00:30] With the idea ...Ne7.} 32. Nf5 {[%emt 0:00:43]} Bxf5 {[%emt 0:05:45]} 33. Bxf5 {[%emt 0:00:01] [#]} (33. gxf5 $11 {remains equal.} Rd8 34. Re4) 33... Ne5 {[%emt 0:01:45]} (33... Ne7 $1 $17 {[%cal Re7f5]} 34. Rxe7 (34. Be4 Nd5 $17) 34... Qxe7 35. Qxd3 Qe5) 34. f4 {[%emt 0:00:20]} Rxf5 {[%emt 0:06:18][%cal Bf8f5,Bf5f3,Bf3g3][%mdl 32]} 35. fxe5 {[%emt 0:00:29][%mdl 12288] Endgame KQR-KQR. This costs White the game.} (35. gxf5 $2 {loses.} Qd5+ 36. Kg3 Qf3+ 37. Kh2 Nc4 $19) (35. Rxe5 $11 Rf8 36. Re3) 35... Qd5+ $19 {[%emt 0:01:56] Black is clearly winning.} 36. Kg1 {[%emt 0:00:05]} Rf3 {[%emt 0:01:23] ( -> ...Rg3+)} 37. Qg2 {[%emt 0:14:20] Against Rg3} d2 {[%emt 0:00:43]} 38. Rd1 {[%emt 0:00:01]} Qd3 {[%emt 0:00:09]} (38... Qe4 $142 39. Rxd2 Qe1+ 40. Kh2 Qxe5+ 41. Kg1 Qe3+ 42. Kh2 Qf4+ 43. Kg1 Rg3) 39. Rxd2 {[%emt 0:00:23]} Qe3+ {[%emt 0:00:32]} 40. Kh2 {[%emt 0:00:45]} Qf4+ {[%emt 0:00:06]} (40... Qxe5+ $142 41. Kg1 Rg3) 41. Kg1 {[%emt 0:31:10]} Rg3 {[%emt 0:31:06]} 42. Re2 {[%emt 0:00:00]} Qf3 {[%emt 0:00:00] Weighted Error Value: White=0.49/Black=0.39} 0-1

[Event "USA Championship 2022"]
[Site "Saint Louis"]
[Date "2022.10.17"]
[Round "11.2"]
[White "Robson, Ray"]
[Black "Liang, Awonder"]
[Result "1/2-1/2"]
[ECO "C02"]
[WhiteElo "2690"]
[BlackElo "2608"]
[Annotator "TA"]
[PlyCount "67"]
[EventDate "2022.09.05"]
[EventType "tourn"]
[EventCountry "USA"]
[SourceTitle "playchess.com"]
[Source "ChessBase"]
[SourceQuality "1"]
[TimeControl "40/5400+30:1800+30"]

{[%evp 15,67,0,0,-16,-12,-14,-12,-18,12,-19,-10,-28,0,0,-5,-25,-25,-25,-25,-25,-25,-25,-25,-25,-25,-29,-29,-29,-30,-47,-46,-50,-30,-30,0,0,0,0,0,0,0,0,0,0,4,0,0,0,17,0,0,0,0,0]} 1. e4 {[%emt 0:07:16]} e6 {[%emt 0:00:02]} 2. d4 {[%emt 0:01:26]} d5 {[%emt 0:00:01]} 3. e5 {[%emt 0:03:09]} c5 {[%emt 0:00:02]} 4. c3 {[%emt 0:00:23]} Nc6 {[%emt 0:00:02]} 5. Nf3 {[%emt 0:00:31]} Qb6 {[%emt 0:00:01]} 6. a3 {[%emt 0:00:58]} c4 {[%emt 0:00:12]} 7. Nbd2 {[%emt 0:03:03]} Na5 {[%emt 0:01:28]} 8. Be2 {[%emt 0:01:52] 8.Rb1 is the hot move.} Bd7 {[%emt 0:00:13]} 9. h4 {[%emt 0:03:33] C02: French: Advance Variation.} O-O-O {[%emt 0:00:27]} 10. Rb1 {[%emt 0:02:11]} Kb8 {[%emt 0:00:38]} 11. O-O {[%emt 0:05:25]} Ne7 {[%emt 0:03:21]} 12. Re1 {[%emt 0:23:13]} h6 {[%emt 0:03:18]} 13. Nf1 {[%emt 0:01:29] [#]} Nb3 $146 {[%emt 0:02:00]} ({Predecessor:} 13... Qc7 14. h5 Nc8 15. Bf4 Nb6 16. Qd2 Ba4 17. N3h2 Be7 18. Bg4 Bh4 19. Bh3 Nc8 {1-0 (88) Quesada Perez,Y (2626)-Nyzhnyk,I (2649) Philadelphia 2019}) 14. Bf4 {[%emt 0:00:37]} Ba4 {[%emt 0:06:58]} 15. N3d2 {[%emt 0:06:24]} Ng6 {[%emt 0:06:34][%csl LRf4,LRh4]} 16. Bg3 {[%emt 0:01:13]} h5 {[%emt 0:00:03]} 17. Nh2 {[%emt 0:03:09]} Be7 {[%emt 0:00:37]} 18. Nhf3 {[%emt 0:00:38]} Rc8 {[%emt 0:04:31][%cal Bd8c8,Bc8c6,Bc6b6,Bb6b5][%mdl 32]} 19. Nxb3 {[%emt 0:00:51]} Qxb3 {[%emt 0:00:39]} 20. Qxb3 {[%emt 0:04:43]} Bxb3 {[%emt 0:00:02]} 21. Rbc1 {[%emt 0:02:46]} Rc6 {[%emt 0:02:19]} 22. Kh2 {[%emt 0:01:04]} Rb6 {[%emt 0:01:23] Threatens to win with ...Ba4.} 23. Bf1 $1 {[%emt 0:00:48]} Rc8 {[%emt 0:03:03][%cal Bh8c8,Bc8c6,Bc6b6][%mdl 32]} (23... Ba4 $5 24. Re2 $8 Bd8 $11) 24. Re2 {[%emt 0:00:46]} Rcc6 {[%emt 0:00:34]} 25. Rd2 {[%emt 0:01:20] The position is equal.} Rb5 {[%emt 0:01:37]} 26. Be2 {[%emt 0:00:54]} Rcb6 {[%emt 0:02:24]} 27. Ra1 $1 {[%emt 0:00:23]} Ba4 {[%emt 0:01:35]} 28. Ra2 {[%emt 0:00:14]} Kc8 {[%emt 0:13:13]} 29. Kh3 {[%emt 0:00:37]} Nf8 {[%emt 0:03:36]} 30. Bf4 {[%emt 0:01:16]} Bb3 {[%emt 0:17:57]} 31. Ra1 {[%emt 0:00:12]} Ba4 {[%emt 0:00:01]} 32. Ra2 {[%emt 0:00:11]} Bb3 {[%emt 0:00:06]} 33. Ra1 {[%emt 0:00:06]} Ba4 $1 {[%emt 0:00:06]} 34. Ra2 {[%emt 0:09:06] Weighted Error Value: White=0.04 (flawless) /Black=0.05 (flawless)} 1/2-1/2

[Event "USA Championship 2022"]
[Site "Saint Louis"]
[Date "2022.10.17"]
[Round "11.3"]
[White "Caruana, Fabiano"]
[Black "Xiong, Jeffery"]
[Result "1/2-1/2"]
[ECO "D35"]
[WhiteElo "2763"]
[BlackElo "2690"]
[Annotator "TA"]
[PlyCount "114"]
[EventDate "2022.09.05"]
[EventType "tourn"]
[EventCountry "USA"]
[SourceTitle "playchess.com"]
[Source "ChessBase"]
[SourceQuality "1"]
[TimeControl "40/5400+30:1800+30"]

{[%evp 15,114,11,14,8,14,23,19,27,22,0,0,-12,-10,-7,8,8,10,11,11,12,10,2,12,0,21,8,33,0,7,0,13,18,43,4,48,0,7,0,3,0,0,0,12,0,0,-15,-20,-14,-13,-14,-14,-17,-4,-13,-7,-1,-10,-12,0,0,0,0,0,0,0,0,0,0,0,0,0,0,0,0,0,0,0,0,0,0,0,0,0,0,0,0,0,0,0,0,0,0,0,0,0,0,0,0,0,0,0]} 1. d4 {[%emt 0:00:03]} d5 {[%emt 0:00:58]} 2. c4 {[%emt 0:00:05]} e6 {[%emt 0:00:09]} 3. Nc3 {[%emt 0:00:06]} Nf6 {[%emt 0:00:28]} 4. cxd5 {[%emt 0:00:08]} exd5 {[%emt 0:00:08]} 5. Bg5 {[%emt 0:00:08]} c6 {[%emt 0:00:35]} 6. e3 {[%emt 0:00:25]} h6 {[%emt 0:00:33]} 7. Bh4 {[%emt 0:00:10]} Be7 {[%emt 0:00:25]} 8. Bd3 {[%emt 0:00:47]} O-O {[%emt 0:00:16]} 9. Nge2 $1 {[%emt 0:00:10][%mdl 4] is currently scoring better than 9.Qc2. D35: Queen's Gambit Declined: Exchange Variation.} Re8 {[%emt 0:00:30]} 10. O-O {[%emt 0:00:13]} a5 {[%emt 0:00:21]} 11. Rc1 {[%emt 0:03:40]} Nbd7 {[%emt 0:09:46] [#]} 12. Na4 $146 {[%emt 0:11:46]} ({Predecessor:} 12. f3 b5 13. Bf2 Nb6 14. Nf4 Bd6 15. b3 Bd7 16. Bb1 Ba3 17. Rc2 Bf5 18. Re2 Bxb1 19. Qxb1 {1-0 (49) Ding,L (2799)-Artemiev,V (2700) chess24.com INT 2022}) 12... b5 {[%emt 0:08:15]} 13. Nc5 {[%emt 0:10:11]} Nxc5 {[%emt 0:00:25]} 14. dxc5 {[%emt 0:00:03]} Nd7 {[%emt 0:08:13][%csl LRc5,LRh4]} 15. Bxe7 {[%emt 0:03:51]} Qxe7 {[%emt 0:00:04]} 16. Nd4 {[%emt 0:00:21]} Ne5 {[%emt 0:01:16]} 17. Bb1 {[%emt 0:00:21]} Bd7 {[%emt 0:03:15]} 18. h3 {[%emt 0:04:07]} Qf6 {[%emt 0:04:55]} 19. b3 {[%emt 0:08:41]} a4 {[%emt 0:04:05]} 20. Re1 {[%emt 0:04:50]} Ra7 {[%emt 0:08:16]} 21. Qh5 {[%emt 0:05:14]} Raa8 {[%emt 0:08:14]} 22. Rcd1 {[%emt 0:02:06]} Ra7 {[%emt 0:03:49]} 23. Qe2 {[%emt 0:02:35]} Ng6 {[%emt 0:02:02]} 24. Qf3 {[%emt 0:03:59]} Qg5 {[%emt 0:05:07]} 25. Kh2 {[%emt 0:01:51]} (25. b4 $14) 25... axb3 {[%emt 0:00:02] The position is equal.} 26. axb3 {[%emt 0:00:07]} Nf8 {[%emt 0:00:59]} 27. Bf5 {[%emt 0:14:40]} Bxf5 {[%emt 0:03:44]} 28. Nxf5 {[%emt 0:00:12]} Qf6 {[%emt 0:12:18]} 29. e4 {[%emt 0:03:43]} Qe5+ {[%emt 0:03:12]} 30. Ng3 {[%emt 0:00:58][%cal Re4d5]} d4 {[%emt 0:01:06]} 31. Qf5 {[%emt 0:00:15]} g6 {[%emt 0:01:21]} 32. Qxe5 {[%emt 0:03:25]} Rxe5 {[%emt 0:00:03]} 33. Ne2 {[%emt 0:01:02]} Ne6 {[%emt 0:00:44]} 34. Nxd4 {[%emt 0:00:09]} Nxd4 {[%emt 0:00:09]} 35. Rxd4 {[%emt 0:00:03]} Rxc5 $11 {[%emt 0:00:07][%mdl 4096] Endgame KRR-KRR} 36. e5 {[%emt 0:00:32]} Re7 {[%emt 0:04:04]} 37. f4 {[%emt 0:00:53]} Rc3 {[%emt 0:00:21]} 38. b4 {[%emt 0:00:51]} c5 {[%emt 0:00:06]} 39. Rd5 {[%emt 0:01:06]} cxb4 {[%emt 0:00:33]} 40. Rxb5 {[%emt 0:00:04]} Rc4 {[%emt 0:00:21]} 41. Kg3 {[%emt 0:31:01]} g5 {[%emt 0:37:14]} 42. Rf1 {[%emt 0:06:50]} Re4 {[%emt 0:00:38]} 43. fxg5 {[%emt 0:02:54][%cal Bf4g5,Bg5h6,Bh6h7][%mdl 32]} R4xe5 {[%emt 0:01:20]} ({Much less strong is} 43... hxg5 44. Rf5 $16) 44. Rxe5 {[%emt 0:00:42]} Rxe5 {[%emt 0:00:03]} 45. gxh6 {[%emt 0:00:05][%cal Oh6h7] KR-KR} Rg5+ {[%emt 0:00:00]} 46. Kh2 {[%emt 0:00:00]} b3 {[%emt 0:00:00]} 47. h7+ {[%emt 0:00:00]} Kh8 {[%emt 0:00:00]} 48. Rxf7 {[%emt 0:00:00]} Rb5 {[%emt 0:00:00] [#] Prevents Rb7. ( -> ...b2)} (48... b2 $2 49. Rb7 $18) 49. Rf1 {[%emt 0:00:00]} b2 {[%emt 0:00:00]} 50. Rb1 {[%emt 0:00:00]} Kxh7 {[%emt 0:00:00]} 51. Kg3 {[%emt 0:00:00]} Kg6 {[%emt 0:00:00]} 52. Kf4 {[%emt 0:00:00]} Kh5 {[%emt 0:00:00]} 53. Ke3 {[%emt 0:00:00]} Kh4 {[%emt 0:00:00]} 54. Kd3 {[%emt 0:00:00]} Kg3 {[%emt 0:00:00]} 55. Kc3 {[%emt 0:00:00]} Kxg2 {[%emt 0:00:00]} 56. Rxb2+ {[%emt 0:00:00]} Rxb2 {[%emt 0:00:00]} 57. Kxb2 {[%emt 0:00:00] [#] h4 would kill now.} Kxh3 {[%emt 0:00:09] Weighted Error Value: White=0.07 (flawless) /Black=0.06 (flawless)} 1/2-1/2